Body Name,ONS SNAC,Pay Date,Transaction No,Amount �,Supplier Name,Company Registration No,Department,Account Name,CIPFA Service Reporting
Swale Borough Council,29UM,06/04/2016,1140251,12856.01,APCOA PARKING (UK) LTD,2572947                  ,CAR PARKS,Private Contractors,Highway and Transport Services
Swale Borough Council,29UM,06/04/2016,1140251,19284.01,APCOA PARKING (UK) LTD,2572947                  ,CAR PARKS,Private Contractors,Highway and Transport Services
Swale Borough Council,29UM,06/04/2016,1140311,556.38,BLENWOOD LTD,4383277                  ,LEISURE & OPEN SPACES,Grounds Contract Variations,Cultural and Related Services
Swale Borough Council,29UM,06/04/2016,1140183,2324.14,CHALKWELL COACH HIRE LTD,2520842                  ,PLANNING SERVICES,Payments in Year,Ledger/Suspense Codes
Swale Borough Council,29UM,06/04/2016,1140184,3333.33,CHALKWELL COACH HIRE LTD,2520842                  ,PLANNING SERVICES,Payments in Year,Ledger/Suspense Codes
Swale Borough Council,29UM,06/04/2016,1140430,265.00,CHEGWORTH GRAPHIC,7683594                  ,COMMUNICATIONS,Signage,Internal Trading Cost Centres
Swale Borough Council,29UM,06/04/2016,1140353,1732.50,CIVICA UK LIMITED,1628868                  ,REVENUE SERVICES,Fees And Services,Central Services to the Public
Swale Borough Council,29UM,06/04/2016,1140353,1732.50,CIVICA UK LIMITED,1628868                  ,REVENUE SERVICES,Fees And Services,Housing
Swale Borough Council,29UM,06/04/2016,1140426,753.60,CLEAR CHANNEL UK LTD,                         ,COMMUNICATIONS,Advertising & Promotion,Internal Trading Cost Centres
Swale Borough Council,29UM,06/04/2016,1140057,1521.85,COMENSURA LTD,04085767                 ,MKIP LEGAL SERVICES,Agency/Contract Staff,Internal Trading Cost Centres
Swale Borough Council,29UM,06/04/2016,1140057,569.06,COMENSURA LTD,04085767                 ,PLANNING SERVICES,Agency/Contract Staff,Internal Trading Cost Centres
Swale Borough Council,29UM,06/04/2016,1140057,248.48,COMENSURA LTD,04085767                 ,HOUSING SERVICES,Agency/Contract Staff,Housing
Swale Borough Council,29UM,06/04/2016,1140057,116.48,COMENSURA LTD,04085767                 ,HOUSING SERVICES,Agency/Contract Staff,Housing
Swale Borough Council,29UM,06/04/2016,1140237,478.02,COMENSURA LTD,04085767                 ,HOUSING SERVICES,Agency/Contract Staff,Housing
Swale Borough Council,29UM,06/04/2016,1140237,1533.30,COMENSURA LTD,04085767                 ,MKIP LEGAL SERVICES,Agency/Contract Staff,Internal Trading Cost Centres
Swale Borough Council,29UM,06/04/2016,1140237,353.74,COMENSURA LTD,04085767                 ,PLANNING SERVICES,Agency/Contract Staff,Internal Trading Cost Centres
Swale Borough Council,29UM,06/04/2016,1140237,372.72,COMENSURA LTD,04085767                 ,HOUSING SERVICES,Agency/Contract Staff,Housing
Swale Borough Council,29UM,06/04/2016,1140164,359.00,CONTRACT SECURITY SERVICES,2461362                  ,EXCHEQUER,Cash Security,Internal Trading Cost Centres
Swale Borough Council,29UM,06/04/2016,1140164,3344.64,CONTRACT SECURITY SERVICES,2461362                  ,CAR PARKS,Cash Security,Highway and Transport Services
Swale Borough Council,29UM,06/04/2016,1140319,2311.04,DAVID HUSKISSON ASSOCIATES LIMITED,2797095                  ,PLANNING SERVICES,Fees And Services,Planning and Development Services
Swale Borough Council,29UM,06/04/2016,1140320,2350.00,DAVID HUSKISSON ASSOCIATES LIMITED,2797095                  ,PLANNING SERVICES,Fees And Services,Planning and Development Services
Swale Borough Council,29UM,06/04/2016,1140321,1500.00,DAVID HUSKISSON ASSOCIATES LIMITED,2797095                  ,PLANNING SERVICES,Fees And Services,Planning and Development Services
Swale Borough Council,29UM,06/04/2016,1140411,440.00,DISCLOSURE & BARRING SERVICE (DT),                         ,SERVICE DELIVERY,Fees And Services,Environmental and Regulatory Services
Swale Borough Council,29UM,06/04/2016,1140236,825.00,EVIDENT CONSULTING LTD,                         ,POLICY,Fees And Services,Environmental and Regulatory Services
Swale Borough Council,29UM,06/04/2016,1140236,42.00,EVIDENT CONSULTING LTD,                         ,POLICY,Fees And Services,Environmental and Regulatory Services
Swale Borough Council,29UM,06/04/2016,1140298,2025.21,GLASDON U.K.LIMITED,2160576                  ,LEISURE & OPEN SPACES,Maintenance - Grounds,Cultural and Related Services
Swale Borough Council,29UM,06/04/2016,1140261,2096.00,INFORM CPI LTD,                         ,REVENUE SERVICES,NNDR Additional Rateable Values,Central Services to the Public
Swale Borough Council,29UM,06/04/2016,1140295,543.20,JASMIL KENNELS,05595524                 ,ENVIRONMENTAL RESPONSE TEAM,Kennelling Of Dogs,Environmental and Regulatory Services
Swale Borough Council,29UM,06/04/2016,1140295,-190.00,JASMIL KENNELS,05595524                 ,ENVIRONMENTAL RESPONSE TEAM,Income collected by Dog Kennels,Environmental and Regulatory Services
Swale Borough Council,29UM,06/04/2016,1139872,1065.00,KENT COUNTY COUNCIL,                         ,PLANNING SERVICES,Consultancy/Specialist Advice,Planning and Development Services
Swale Borough Council,29UM,06/04/2016,1140058,7802.00,KENT COUNTY COUNCIL,                         ,PLANNING SERVICES,Fees And Services,Planning and Development Services
Swale Borough Council,29UM,06/04/2016,1140435,11014.85,KINGDOM SECURITY LIMITED,                         ,ENVIRONMENTAL RESPONSE TEAM,Fees And Services,Planning and Development Services
Swale Borough Council,29UM,06/04/2016,1140069,250.00,LEMAR LIMITED,04350292                 ,CAR PARKS,Maintenance - Grounds,Highway and Transport Services
Swale Borough Council,29UM,06/04/2016,1140069,125.00,LEMAR LIMITED,04350292                 ,CAR PARKS,Maintenance - Grounds,Highway and Transport Services
Swale Borough Council,29UM,06/04/2016,1140205,400.00,LEMAR LIMITED,04350292                 ,CAR PARKS,Maintenance - Grounds,Highway and Transport Services
Swale Borough Council,29UM,06/04/2016,1140205,475.00,LEMAR LIMITED,04350292                 ,CAR PARKS,Maintenance - Grounds,Highway and Transport Services
Swale Borough Council,29UM,06/04/2016,1140351,166869.49,LOWER MEDWAY INTERNAL DRAINAGE BO,                         ,FINANCIAL SERVICES,Lmidb - Drainage Rates,Other Operating Expenditure
Swale Borough Council,29UM,06/04/2016,1140355,945.00,LUSHLAND,4289261                  ,PLANNING SERVICES,Fees And Services,Planning and Development Services
Swale Borough Council,29UM,06/04/2016,1139980,1631.08,MATCHTECH,4426336                  ,PLANNING SERVICES,Agency/Contract Staff,Internal Trading Cost Centres
Swale Borough Council,29UM,06/04/2016,1139981,1583.56,MATCHTECH,4426336                  ,PLANNING SERVICES,Agency/Contract Staff,Internal Trading Cost Centres
Swale Borough Council,29UM,06/04/2016,1140066,285.00,MAYLOW CONSTRUCTION LTD,                         ,CAR PARKS,Maintenance - Grounds,Highway and Transport Services
Swale Borough Council,29UM,06/04/2016,1139982,3000.00,MEDWAY COUNCIL,                         ,PLANNING SERVICES,Fees And Services,Planning and Development Services
Swale Borough Council,29UM,06/04/2016,1140312,250.00,MR J W GATES,                         ,LEISURE & OPEN SPACES,Maintenance - Grounds,Cultural and Related Services
Swale Borough Council,29UM,06/04/2016,1140305,439.73,NORTHSHORE DESIGNS LIMITED,                         ,ENVIRONMENTAL RESPONSE TEAM,Protective Clothing,Internal Trading Cost Centres
Swale Borough Council,29UM,06/04/2016,1140168,80.00,QUEENBOROUGH TOWN COMMUNITY CENTRE,                         ,POLICY,Fees And Services,Environmental and Regulatory Services
Swale Borough Council,29UM,06/04/2016,1140168,247.50,QUEENBOROUGH TOWN COMMUNITY CENTRE,                         ,POLICY,Catering Provisions,Environmental and Regulatory Services
Swale Borough Council,29UM,06/04/2016,1140300,1026.00,RSP RAIL TRAVEL ACCOUNT - (DT),                         ,FINANCIAL SERVICES,Travel Warrants (Staff Travel),Internal Trading Cost Centres
Swale Borough Council,29UM,06/04/2016,1140303,375.00,RURAL PLANNING LTD,4426249                  ,PLANNING SERVICES,Fees And Services,Planning and Development Services
Swale Borough Council,29UM,06/04/2016,1140398,750.00,SMART EVENT SUPPORT LTD.,8943723                  ,LEISURE & OPEN SPACES,Maintenance - Grounds,Cultural and Related Services
Swale Borough Council,29UM,06/04/2016,1140167,3710.43,SOUTH EAST EMPLOYERS,                         ,HUMAN RESOURCES,Grants & Subscriptions,Corporate & Democratic Core
Swale Borough Council,29UM,06/04/2016,1140290,245.00,TEDDSONS & SONS LTD,08945129                 ,LEISURE & OPEN SPACES,Maintenance - Grounds,Cultural and Related Services
Swale Borough Council,29UM,06/04/2016,1140290,18.00,TEDDSONS & SONS LTD,08945129                 ,LEISURE & OPEN SPACES,Maintenance - Grounds,Cultural and Related Services
Swale Borough Council,29UM,06/04/2016,1140472,2143.80,THE JOHN WOODWARD PARTNERSHIP,                         ,PLANNING SERVICES,Fees And Services,Planning and Development Services
Swale Borough Council,29UM,06/04/2016,1140158,325.00,THREE TOWNS OFFICE EQUIPMENT LTD,                         ,PLANNING SERVICES,Equipment Purchase,Planning and Development Services
Swale Borough Council,29UM,06/04/2016,1140287,12308.40,TUNBRIDGE WELLS BOROUGH COUNCIL,                         ,FINANCIAL SERVICES,Awaiting Allocation,Ledger/Suspense Codes
Swale Borough Council,29UM,06/04/2016,1140342,902.00,VENN GROUP LIMITED,                         ,MKIP LEGAL SERVICES,Agency/Contract Staff,Internal Trading Cost Centres
Swale Borough Council,29UM,06/04/2016,1140343,840.50,VENN GROUP LIMITED,                         ,MKIP LEGAL SERVICES,Agency/Contract Staff,Internal Trading Cost Centres
Swale Borough Council,29UM,06/04/2016,1140344,1107.20,VENN GROUP LIMITED,                         ,MKIP LEGAL SERVICES,Agency/Contract Staff,Internal Trading Cost Centres
Swale Borough Council,29UM,06/04/2016,1140345,1230.00,VENN GROUP LIMITED,                         ,MKIP LEGAL SERVICES,Agency/Contract Staff,Internal Trading Cost Centres
Swale Borough Council,29UM,13/04/2016,1140454,3500.00,ACTION WITH COMMUNITIES IN RURAL KENT,                         ,HOUSING SERVICES,Fees And Services,Housing
Swale Borough Council,29UM,13/04/2016,1140532,71.37,ALLSTAR BUSINESS SOLUTIONS LTD - (DT),1073098                  ,SERVICE DELIVERY,Petrol/Derv & Oil,Cultural and Related Services
Swale Borough Council,29UM,13/04/2016,1140532,152.65,ALLSTAR BUSINESS SOLUTIONS LTD - (DT),1073098                  ,ENVIRONMENTAL RESPONSE TEAM,Fuel For Contract Vehicles,Internal Trading Cost Centres
Swale Borough Council,29UM,13/04/2016,1140532,55.14,ALLSTAR BUSINESS SOLUTIONS LTD - (DT),1073098                  ,LEISURE & OPEN SPACES,Fuel For Contract Vehicles,Cultural and Related Services
Swale Borough Council,29UM,13/04/2016,1140532,43.41,ALLSTAR BUSINESS SOLUTIONS LTD - (DT),1073098                  ,ENVIRONMENTAL RESPONSE TEAM,Fuel For Contract Vehicles,Environmental and Regulatory Services
Swale Borough Council,29UM,13/04/2016,1140260,252.00,ASHFORD BOROUGH COUNCIL,                         ,EMERGENCY PLANNING,Other Local Authorities,Central Services to the Public
Swale Borough Council,29UM,13/04/2016,1140348,800.00,ASHFORD BOROUGH COUNCIL,                         ,EMERGENCY PLANNING,Other Local Authorities,Central Services to the Public
Swale Borough Council,29UM,13/04/2016,1140442,296.31,BRITISH GAS TRADING LTD,                         ,LEISURE & OPEN SPACES,Gas,Cultural and Related Services
Swale Borough Council,29UM,13/04/2016,1140577,895.16,BT REDCARE,1800000                  ,COMMUNITY SAFETY,CCTV Line Rental,Environmental and Regulatory Services
Swale Borough Council,29UM,13/04/2016,1140620,5998.66,BT REDCARE,1800000                  ,COMMUNITY SAFETY,CCTV Line Rental,Environmental and Regulatory Services
Swale Borough Council,29UM,13/04/2016,1140350,1000.00,CANTERBURY CITY COUNCIL,                         ,HOUSING SERVICES,Fees And Services,Housing
Swale Borough Council,29UM,13/04/2016,1140552,950.00,CART ASSIST LIMITED,                         ,COMMISSIONING & CUSTOMER CONTACT,Performance Fund Expenditure,Ledger/Suspense Codes
Swale Borough Council,29UM,13/04/2016,1140446,270.00,CD SUPPLIES LTD,                         ,LEISURE & OPEN SPACES,Maintenance - Grounds,Cultural and Related Services
Swale Borough Council,29UM,13/04/2016,1140555,333.40,CHILDREN AND FAMILIES LTD,                         ,COMMUNITY SAFETY,Fees And Services,Planning and Development Services
Swale Borough Council,29UM,13/04/2016,1140556,7340.17,CHILDREN AND FAMILIES LTD,                         ,COMMUNITY SAFETY,Fees And Services,Planning and Development Services
Swale Borough Council,29UM,13/04/2016,1140586,666.66,CLARKES SPORTS STUDIO,                         ,LEISURE & OPEN SPACES,Grants & Subscriptions,Cultural and Related Services
Swale Borough Council,29UM,13/04/2016,1140507,516.57,COMENSURA LTD,04085767                 ,HOUSING SERVICES,Agency/Contract Staff,Housing
Swale Borough Council,29UM,13/04/2016,1140507,1293.01,COMENSURA LTD,04085767                 ,MKIP LEGAL SERVICES,Agency/Contract Staff,Internal Trading Cost Centres
Swale Borough Council,29UM,13/04/2016,1140507,287.31,COMENSURA LTD,04085767                 ,HOUSING SERVICES,Agency/Contract Staff,Housing
Swale Borough Council,29UM,13/04/2016,1140512,391.80,COMMERCIAL SERVICES TRADING LTD,5858178                  ,SERVICE DELIVERY,Hire & Leases,Cultural and Related Services
Swale Borough Council,29UM,13/04/2016,1140554,3780.00,CRIMESTOPPERS TRUST,5382856                  ,COMMUNITY SAFETY,Fees And Services,Planning and Development Services
Swale Borough Council,29UM,13/04/2016,1140575,370.00,CROWN ESTATE COMMISSIONERS,                         ,SERVICE DELIVERY,Rent,Cultural and Related Services
Swale Borough Council,29UM,13/04/2016,1140346,600.00,CRYSTALL BALL LTD,06668428                 ,CONTRACT & PROCUREMENT,Fees And Services,Internal Trading Cost Centres
Swale Borough Council,29UM,13/04/2016,1140531,2044.00,DCB (KENT) LIMITED,03532339                 ,COMMUNITY SAFETY,Non-Planned Building Maintenance,Cultural and Related Services
Swale Borough Council,29UM,13/04/2016,1140531,2002.30,DCB (KENT) LIMITED,03532339                 ,PROPERTY SERVICES,Non-Planned Building Maintenance,Trading Undertaking
Swale Borough Council,29UM,13/04/2016,1140531,280.63,DCB (KENT) LIMITED,03532339                 ,CONTRACT & PROCUREMENT,Non-Planned Building Maintenance,Environmental and Regulatory Services
Swale Borough Council,29UM,13/04/2016,1140531,167.15,DCB (KENT) LIMITED,03532339                 ,CONTRACT & PROCUREMENT,Non-Planned Building Maintenance,Environmental and Regulatory Services
Swale Borough Council,29UM,13/04/2016,1140531,22.50,DCB (KENT) LIMITED,03532339                 ,CONTRACT & PROCUREMENT,Non-Planned Building Maintenance,Environmental and Regulatory Services
Swale Borough Council,29UM,13/04/2016,1140531,66.28,DCB (KENT) LIMITED,03532339                 ,CONTRACT & PROCUREMENT,Non-Planned Building Maintenance,Environmental and Regulatory Services
Swale Borough Council,29UM,13/04/2016,1140531,100.00,DCB (KENT) LIMITED,03532339                 ,LEISURE & OPEN SPACES,Non-Planned Building Maintenance,Cultural and Related Services
Swale Borough Council,29UM,13/04/2016,1140531,90.24,DCB (KENT) LIMITED,03532339                 ,LEISURE & OPEN SPACES,Non-Planned Building Maintenance,Cultural and Related Services
Swale Borough Council,29UM,13/04/2016,1140531,179.67,DCB (KENT) LIMITED,03532339                 ,LEISURE & OPEN SPACES,Non-Planned Building Maintenance,Cultural and Related Services
Swale Borough Council,29UM,13/04/2016,1140531,21.50,DCB (KENT) LIMITED,03532339                 ,LEISURE & OPEN SPACES,Non-Planned Building Maintenance,Cultural and Related Services
Swale Borough Council,29UM,13/04/2016,1140470,-3657.00,DCLG,                         ,FINANCIAL SERVICES,Empty New Build Relief (S31),Taxation and Non-Specific Grant Income
Swale Borough Council,29UM,13/04/2016,1140470,-405.00,DCLG,                         ,FINANCIAL SERVICES,SBRR - 2nd Property Occupied Grant (S31),Taxation and Non-Specific Grant Income
Swale Borough Council,29UM,13/04/2016,1140470,36263.00,DCLG,                         ,FINANCIAL SERVICES,Retail Relief (S31),Taxation and Non-Specific Grant Income
Swale Borough Council,29UM,13/04/2016,1140470,8409.00,DCLG,                         ,FINANCIAL SERVICES,Reoccupation Relief (S31),Taxation and Non-Specific Grant Income
Swale Borough Council,29UM,13/04/2016,1140470,1982.00,DCLG,                         ,FINANCIAL SERVICES,Business Rates 2% Inflation Cap (S31),Taxation and Non-Specific Grant Income
Swale Borough Council,29UM,13/04/2016,1140470,-34881.00,DCLG,                         ,FINANCIAL SERVICES,Small business & empty Property Grant,Taxation and Non-Specific Grant Income
Swale Borough Council,29UM,13/04/2016,1140479,624.80,DHA PLANNING,2683290                  ,PLANNING SERVICES,Fees And Services,Internal Trading Cost Centres
Swale Borough Council,29UM,13/04/2016,1140480,2530.28,DHA PLANNING,2683290                  ,PLANNING SERVICES,Fees And Services,Internal Trading Cost Centres
Swale Borough Council,29UM,13/04/2016,1140481,733.96,DHA PLANNING,2683290                  ,PLANNING SERVICES,Fees And Services,Internal Trading Cost Centres
Swale Borough Council,29UM,13/04/2016,1140499,360.00,DHA PLANNING,2683290                  ,PLANNING SERVICES,Fees And Services,Internal Trading Cost Centres
Swale Borough Council,29UM,13/04/2016,1140341,433.89,EMO OIL LTD,04168225                 ,CONTRACT & PROCUREMENT,Fuel Oil,Environmental and Regulatory Services
Swale Borough Council,29UM,13/04/2016,1140536,1282.45,FAVERSHAM TOWN COUNCIL,                         ,COMMUNITY SAFETY,Grants & Subscriptions,Central Services to the Public
Swale Borough Council,29UM,13/04/2016,1140433,1093.75,HARRISONS CHARTERED SURVEYORS,                         ,FINANCIAL SERVICES,Awaiting Allocation,Ledger/Suspense Codes
Swale Borough Council,29UM,13/04/2016,1140467,1208.33,IKEN BUSINESS LTD,2776536                  ,MKIP LEGAL SERVICES,"Books, Journals & e - resources",Internal Trading Cost Centres
Swale Borough Council,29UM,13/04/2016,1140452,2009.01,KENT COUNTY COUNCIL,                         ,COMMISSIONING & CUSTOMER CONTACT,Contracts,Internal Trading Cost Centres
Swale Borough Council,29UM,13/04/2016,1140580,4553.38,KENT COUNTY COUNCIL (KCS),                         ,PROPERTY SERVICES,Electricity,Corporate & Democratic Core
Swale Borough Council,29UM,13/04/2016,1140225,16092.18,KGB CLEANING & SUPPORT SERVICES LTD,                         ,CONTRACT & PROCUREMENT,Private Contractors,Environmental and Regulatory Services
Swale Borough Council,29UM,13/04/2016,1140226,5065.10,KGB CLEANING & SUPPORT SERVICES LTD,                         ,CONTRACT & PROCUREMENT,Private Contractors,Environmental and Regulatory Services
Swale Borough Council,29UM,13/04/2016,1140227,2350.73,KGB CLEANING & SUPPORT SERVICES LTD,                         ,CONTRACT & PROCUREMENT,Private Contractors,Environmental and Regulatory Services
Swale Borough Council,29UM,13/04/2016,1140228,4366.24,KGB CLEANING & SUPPORT SERVICES LTD,                         ,CONTRACT & PROCUREMENT,Private Contractors,Environmental and Regulatory Services
Swale Borough Council,29UM,13/04/2016,1140229,-4308.81,KGB CLEANING & SUPPORT SERVICES LTD,                         ,CONTRACT & PROCUREMENT,Private Contractors,Environmental and Regulatory Services
Swale Borough Council,29UM,13/04/2016,1140682,40.00,LAND REGISTRY - (DT),                         ,LEISURE & OPEN SPACES,Fees - Land Registry,Environmental and Regulatory Services
Swale Borough Council,29UM,13/04/2016,1140682,3.00,LAND REGISTRY - (DT),                         ,COMMUNITY SAFETY,Fees - Land Registry,Cultural and Related Services
Swale Borough Council,29UM,13/04/2016,1140682,6.00,LAND REGISTRY - (DT),                         ,PROPERTY SERVICES,Fees - Land Registry,Trading Undertaking
Swale Borough Council,29UM,13/04/2016,1140682,193.00,LAND REGISTRY - (DT),                         ,REVENUE SERVICES,Fees - Land Registry,Central Services to the Public
Swale Borough Council,29UM,13/04/2016,1140682,120.00,LAND REGISTRY - (DT),                         ,PLANNING SERVICES,Fees - Land Registry,Planning and Development Services
Swale Borough Council,29UM,13/04/2016,1140682,6.00,LAND REGISTRY - (DT),                         ,ECONOMIC DEVELOPMENT,Fees - Land Registry,Planning and Development Services
Swale Borough Council,29UM,13/04/2016,1140682,6.00,LAND REGISTRY - (DT),                         ,SERVICE DELIVERY,Fees - Land Registry,Cultural and Related Services
Swale Borough Council,29UM,13/04/2016,1140682,12.00,LAND REGISTRY - (DT),                         ,ENVIRONMENTAL RESPONSE TEAM,Fees - Land Registry,Internal Trading Cost Centres
Swale Borough Council,29UM,13/04/2016,1140682,48.00,LAND REGISTRY - (DT),                         ,PLANNING SERVICES,Fees - Land Registry,Internal Trading Cost Centres
Swale Borough Council,29UM,13/04/2016,1140682,66.00,LAND REGISTRY - (DT),                         ,ENVIRONMENTAL RESPONSE TEAM,Fees - Land Registry,Internal Trading Cost Centres
Swale Borough Council,29UM,13/04/2016,1140682,12.00,LAND REGISTRY - (DT),                         ,LEISURE & OPEN SPACES,Fees - Land Registry,Internal Trading Cost Centres
Swale Borough Council,29UM,13/04/2016,1140682,3.00,LAND REGISTRY - (DT),                         ,LEISURE & OPEN SPACES,Fees - Land Registry,Cultural and Related Services
Swale Borough Council,29UM,13/04/2016,1140682,24.00,LAND REGISTRY - (DT),                         ,HOUSING SERVICES,Fees - Land Registry,Housing
Swale Borough Council,29UM,13/04/2016,1140682,62.00,LAND REGISTRY - (DT),                         ,HOUSING SERVICES,Fees - Land Registry,Housing
Swale Borough Council,29UM,13/04/2016,1140450,1300.00,LAVAT CONSULTING LTD.,4810070                  ,FINANCIAL SERVICES,Consultancy/Specialist Advice,Internal Trading Cost Centres
Swale Borough Council,29UM,13/04/2016,1140451,400.00,LAVAT CONSULTING LTD.,4810070                  ,FINANCIAL SERVICES,Consultancy/Specialist Advice,Internal Trading Cost Centres
Swale Borough Council,29UM,13/04/2016,1140402,440.00,LYRECO UK LTD,                         ,PROPERTY SERVICES,Paper,Internal Trading Cost Centres
Swale Borough Council,29UM,13/04/2016,1140405,340.00,LYRECO UK LTD,                         ,PROPERTY SERVICES,Paper,Internal Trading Cost Centres
Swale Borough Council,29UM,13/04/2016,1140415,440.00,LYRECO UK LTD,                         ,PROPERTY SERVICES,Paper,Internal Trading Cost Centres
Swale Borough Council,29UM,13/04/2016,1140510,1800.00,MACDONALD & COMPANY FREELANCE LTD,3882135                  ,PLANNING SERVICES,Agency/Contract Staff,Internal Trading Cost Centres
Swale Borough Council,29UM,13/04/2016,1140624,3120.00,MACDONALD & COMPANY FREELANCE LTD,3882135                  ,PLANNING SERVICES,Agency/Contract Staff,Internal Trading Cost Centres
Swale Borough Council,29UM,13/04/2016,1139964,946.93,MAIDSTONE BOROUGH COUNCIL,                         ,MKIP ENVIRONMENTAL SERVICES,MKIP Charges for Environmental Services,Internal Trading Cost Centres
Swale Borough Council,29UM,13/04/2016,1140050,14721.85,MAIDSTONE BOROUGH COUNCIL,                         ,CONTRACT & PROCUREMENT,Variations To Contract,Environmental and Regulatory Services
Swale Borough Council,29UM,13/04/2016,1140591,1638.56,MATCHTECH,4426336                  ,PLANNING SERVICES,Agency/Contract Staff,Internal Trading Cost Centres
Swale Borough Council,29UM,13/04/2016,1140551,1886.10,MEDWAY COUNCIL,                         ,COMMUNITY SAFETY,Fees And Services,Planning and Development Services
Swale Borough Council,29UM,13/04/2016,1140304,700.00,MELENGA BUSINESS SOLUTIONS LTD,06148446                 ,FINANCIAL SERVICES,Agency/Contract Staff,Internal Trading Cost Centres
Swale Borough Council,29UM,13/04/2016,1140301,585.00,METRIC GROUP LTD,2560839                  ,CAR PARKS,Fees - Licence,Highway and Transport Services
Swale Borough Council,29UM,13/04/2016,1139921,295.00,MORGANA SYSTEMS LTD,1335506                  ,PROPERTY SERVICES,Equipment Maintenance,Internal Trading Cost Centres
Swale Borough Council,29UM,13/04/2016,1140515,1680.00,REDACTED PERSONAL INFORMATION,                         ,CAR PARKS,Private Contractors,Highway and Transport Services
Swale Borough Council,29UM,13/04/2016,1140464,250.00,MR J W GATES,                         ,LEISURE & OPEN SPACES,Maintenance - Grounds,Cultural and Related Services
Swale Borough Council,29UM,13/04/2016,1140498,13875.00,REDACTED PERSONAL INFORMATION,                         ,PLANNING SERVICES,Legal Fees,Planning and Development Services
Swale Borough Council,29UM,13/04/2016,1140498,477.00,REDACTED PERSONAL INFORMATION,                         ,PLANNING SERVICES,Legal Fees,Planning and Development Services
Swale Borough Council,29UM,13/04/2016,1140498,2775.00,REDACTED PERSONAL INFORMATION,                         ,PLANNING SERVICES,Legal Fees,Planning and Development Services
Swale Borough Council,29UM,13/04/2016,1140553,24500.00,REDACTED PERSONAL INFORMATION,                         ,PLANNING SERVICES,Fees And Services,Planning and Development Services
Swale Borough Council,29UM,13/04/2016,1140553,4900.00,REDACTED PERSONAL INFORMATION,                         ,PLANNING SERVICES,Fees And Services,Planning and Development Services
Swale Borough Council,29UM,13/04/2016,1140330,405.00,REDACTED PERSONAL INFORMATION,                         ,HOUSING SERVICES,Awaiting Allocation,Ledger/Suspense Codes
Swale Borough Council,29UM,13/04/2016,1140468,26.46,P&MM LTD,1090180                  ,HUMAN RESOURCES,Fees And Services,Corporate & Democratic Core
Swale Borough Council,29UM,13/04/2016,1140579,327.84,PLAYDALE PLAYGROUNDS LTD,                         ,LEISURE & OPEN SPACES,Equipment Purchase,Cultural and Related Services
Swale Borough Council,29UM,13/04/2016,1140445,290.33,PORTAKABIN LIMITED,685303                   ,LEISURE & OPEN SPACES,Maintenance - Grounds,Environmental and Regulatory Services
Swale Borough Council,29UM,13/04/2016,1140538,637.60,POSTURITE LTD,                         ,DIRECTOR OF REGENERATION,Equipment Purchase,Internal Trading Cost Centres
Swale Borough Council,29UM,13/04/2016,1140544,360.00,RIPPLEEFFECT,                         ,TOURISM & SPORTS DEVELOPMENT,Fees And Services,Cultural and Related Services
Swale Borough Council,29UM,13/04/2016,1139977,3824.00,ROBERT BRETT & SONS LTD,                         ,LEISURE & OPEN SPACES,Consultancy/Specialist Advice,Cultural and Related Services
Swale Borough Council,29UM,13/04/2016,1140336,1200.00,ROBERT BRETT & SONS LTD,                         ,LEISURE & OPEN SPACES,Consultancy/Specialist Advice,Cultural and Related Services
Swale Borough Council,29UM,13/04/2016,1140505,4629.50,REDACTED PERSONAL INFORMATION,                         ,MKIP LEGAL SERVICES,Agency/Contract Staff,Internal Trading Cost Centres
Swale Borough Council,29UM,13/04/2016,1140419,285.00,SAFETY FIRST AID,                         ,HEALTH & SAFETY,Equipment Purchase,Corporate & Democratic Core
Swale Borough Council,29UM,13/04/2016,1140596,3554.87,SCHOFIELD LOTHIAN LTD,6717705                  ,PLANNING SERVICES,Fees And Services,Internal Trading Cost Centres
Swale Borough Council,29UM,13/04/2016,1140292,330.00,SERCO LIMITED,242246                   ,PROPERTY SERVICES,Non-Planned Building Maintenance,Cultural and Related Services
Swale Borough Council,29UM,13/04/2016,1140678,2968.00,SERCO PAISA LTD - (DT),04908482                 ,LEISURE & OPEN SPACES,Contracts,Cultural and Related Services
Swale Borough Council,29UM,13/04/2016,1140679,2968.00,SERCO PAISA LTD - (DT),04908482                 ,LEISURE & OPEN SPACES,Contracts,Cultural and Related Services
Swale Borough Council,29UM,13/04/2016,1140680,2968.00,SERCO PAISA LTD - (DT),04908482                 ,LEISURE & OPEN SPACES,Contracts,Cultural and Related Services
Swale Borough Council,29UM,13/04/2016,1140548,707.82,SOUTHERN WATER SERVICES LIMITED,2366670                  ,CONTRACT & PROCUREMENT,Water - Metered,Environmental and Regulatory Services
Swale Borough Council,29UM,13/04/2016,1140549,941.63,SOUTHERN WATER SERVICES LIMITED,2366670                  ,CONTRACT & PROCUREMENT,Water - Metered,Environmental and Regulatory Services
Swale Borough Council,29UM,13/04/2016,1140550,457.95,SOUTHERN WATER SERVICES LIMITED,2366670                  ,PROPERTY SERVICES,Water - Metered,Corporate & Democratic Core
Swale Borough Council,29UM,13/04/2016,1140550,815.33,SOUTHERN WATER SERVICES LIMITED,2366670                  ,PROPERTY SERVICES,Water - Metered,Corporate & Democratic Core
Swale Borough Council,29UM,13/04/2016,1140573,657.72,SOUTHERN WATER SERVICES LIMITED,2366670                  ,LEISURE & OPEN SPACES,Water - Metered,Cultural and Related Services
Swale Borough Council,29UM,13/04/2016,1140475,4700.00,SWALE COMMUNITY LEISURE LIMITED,31132R                   ,LEISURE & OPEN SPACES,Procurement Contracts Only,Cultural and Related Services
Swale Borough Council,29UM,13/04/2016,1140478,240.00,TEDDSONS & SONS LTD,08945129                 ,LEISURE & OPEN SPACES,Maintenance - Grounds,Cultural and Related Services
Swale Borough Council,29UM,13/04/2016,1140478,27.00,TEDDSONS & SONS LTD,08945129                 ,LEISURE & OPEN SPACES,Maintenance - Grounds,Cultural and Related Services
Swale Borough Council,29UM,13/04/2016,1140482,240.00,TEDDSONS & SONS LTD,08945129                 ,LEISURE & OPEN SPACES,Maintenance - Grounds,Cultural and Related Services
Swale Borough Council,29UM,13/04/2016,1140482,115.50,TEDDSONS & SONS LTD,08945129                 ,LEISURE & OPEN SPACES,Maintenance - Grounds,Cultural and Related Services
Swale Borough Council,29UM,13/04/2016,1140477,350.00,TEYNHAM LANDSCAPING LTD,                         ,LEISURE & OPEN SPACES,Swale In Bloom,Cultural and Related Services
Swale Borough Council,29UM,13/04/2016,1140504,255.00,THE MEADS COMMUNITY CENTRE TRUST,                         ,DEMOCRATIC & ELECTORAL SERVICES,Hire Of Premises,Ledger/Suspense Codes
Swale Borough Council,29UM,13/04/2016,1140504,255.00,THE MEADS COMMUNITY CENTRE TRUST,                         ,DEMOCRATIC & ELECTORAL SERVICES,Hire Of Premises,Ledger/Suspense Codes
Swale Borough Council,29UM,13/04/2016,1140323,68730.62,THE PLANNING INSPECTORATE,                         ,PLANNING SERVICES,Fees And Services,Planning and Development Services
Swale Borough Council,29UM,13/04/2016,1140524,1143.20,VENN GROUP LIMITED,                         ,MKIP LEGAL SERVICES,Agency/Contract Staff,Internal Trading Cost Centres
Swale Borough Council,29UM,13/04/2016,1140525,881.50,VENN GROUP LIMITED,                         ,MKIP LEGAL SERVICES,Agency/Contract Staff,Internal Trading Cost Centres
Swale Borough Council,29UM,13/04/2016,1140526,1230.00,VENN GROUP LIMITED,                         ,MKIP LEGAL SERVICES,Agency/Contract Staff,Internal Trading Cost Centres
Swale Borough Council,29UM,13/04/2016,1140527,922.50,VENN GROUP LIMITED,                         ,MKIP LEGAL SERVICES,Agency/Contract Staff,Internal Trading Cost Centres
Swale Borough Council,29UM,13/04/2016,1140456,651.63,WHISTL UK LIMITED,04417047                 ,REVENUE SERVICES,Postage,Central Services to the Public
Swale Borough Council,29UM,13/04/2016,1140456,325.82,WHISTL UK LIMITED,04417047                 ,REVENUE SERVICES,Postage,Housing
Swale Borough Council,29UM,13/04/2016,1140456,1795.99,WHISTL UK LIMITED,04417047                 ,PROPERTY SERVICES,Postage,Holding Codes
Swale Borough Council,29UM,20/04/2016,1140557,16000.00,A C GOTHAM & SON,                         ,PLANNING SERVICES,Court Costs,Planning and Development Services
Swale Borough Council,29UM,20/04/2016,1140857,316.45,ACORN MAINTENANCE SERVICES,3546898                  ,HOUSING SERVICES,Housing Renovation Grants,Not used in this Structure
Swale Borough Council,29UM,20/04/2016,1140858,399.31,ACORN MAINTENANCE SERVICES,3546898                  ,HOUSING SERVICES,Housing Renovation Grants,Not used in this Structure
Swale Borough Council,29UM,20/04/2016,1140859,6490.73,ACORN MAINTENANCE SERVICES,3546898                  ,HOUSING SERVICES,Housing Renovation Grants,Not used in this Structure
Swale Borough Council,29UM,20/04/2016,1140637,600.00,REDACTED PERSONAL INFORMATION,                         ,HOUSING SERVICES,RDS - Landlord claim on Bond Scheme,Housing
Swale Borough Council,29UM,20/04/2016,1140855,3717.00,ASCENDIT LIFTS LTD,3493530                  ,HOUSING SERVICES,Housing Renovation Grants,Not used in this Structure
Swale Borough Council,29UM,20/04/2016,1140856,1983.00,ASCENDIT LIFTS LTD,3493530                  ,HOUSING SERVICES,Housing Renovation Grants,Not used in this Structure
Swale Borough Council,29UM,20/04/2016,1140795,15000.00,BAILEYS CANTERBURY,                         ,FINANCIAL SERVICES,Payments in Year,Ledger/Suspense Codes
Swale Borough Council,29UM,20/04/2016,1140806,3359.64,BLENWOOD LTD,4383277                  ,LEISURE & OPEN SPACES,Forrestry/Woodland,Cultural and Related Services
Swale Borough Council,29UM,20/04/2016,1140592,2066.69,CANON UK LTD,1264300                  ,PROPERTY SERVICES,Equipment Maintenance,Internal Trading Cost Centres
Swale Borough Council,29UM,20/04/2016,1140699,515.40,CHALKWELL COACH HIRE LTD,2520842                  ,TOURISM & SPORTS DEVELOPMENT,Fees And Services,Cultural and Related Services
Swale Borough Council,29UM,20/04/2016,1140576,1000.00,CIPFA BUSINESS LTD,2376684                  ,FINANCIAL SERVICES,Fees And Services,Internal Trading Cost Centres
Swale Borough Council,29UM,20/04/2016,1140594,293.10,CITY & KENT CLEANING LTD,                         ,PROPERTY SERVICES,Cleaning Materials,Internal Trading Cost Centres
Swale Borough Council,29UM,20/04/2016,1140657,666.66,CLARKES SPORTS STUDIO,                         ,LEISURE & OPEN SPACES,Grants & Subscriptions,Cultural and Related Services
Swale Borough Council,29UM,20/04/2016,1140700,647.64,COMENSURA LTD,04085767                 ,HOUSING SERVICES,Agency/Contract Staff,Housing
Swale Borough Council,29UM,20/04/2016,1140700,1693.50,COMENSURA LTD,04085767                 ,MKIP LEGAL SERVICES,Agency/Contract Staff,Internal Trading Cost Centres
Swale Borough Council,29UM,20/04/2016,1140700,192.77,COMENSURA LTD,04085767                 ,DEMOCRATIC & ELECTORAL SERVICES,Agency/Contract Staff,Internal Trading Cost Centres
Swale Borough Council,29UM,20/04/2016,1140700,9.00,COMENSURA LTD,04085767                 ,DEMOCRATIC & ELECTORAL SERVICES,Agency/Contract Staff,Internal Trading Cost Centres
Swale Borough Council,29UM,20/04/2016,1140700,302.83,COMENSURA LTD,04085767                 ,HOUSING SERVICES,Agency/Contract Staff,Housing
Swale Borough Council,29UM,20/04/2016,1140689,1000.00,FAVERSHAM ROTARY CLUB,                         ,TOURISM & SPORTS DEVELOPMENT,Grants & Subscriptions,Cultural and Related Services
Swale Borough Council,29UM,20/04/2016,1140703,970.00,REDACTED PERSONAL INFORMATION,                         ,HOUSING SERVICES,RDS - Landlord claim on Bond Scheme,Housing
Swale Borough Council,29UM,20/04/2016,1140516,2577.82,GEMINI CONSULTANTS LTD,2088382                  ,FINANCIAL SERVICES,Gemini Mortgages,Housing
Swale Borough Council,29UM,20/04/2016,1140316,15184.75,GRANT THORNTON UK LLP,                         ,DIRECTOR OF CORPORATE SERVICES,External Audit Fee,Corporate & Democratic Core
Swale Borough Council,29UM,20/04/2016,1140317,15024.00,GRANT THORNTON UK LLP,                         ,REVENUE SERVICES,External Audit Fee,Housing
Swale Borough Council,29UM,20/04/2016,1140845,6418.38,GREENS GROUNDWORK,                         ,HOUSING SERVICES,Housing Renovation Grants,Not used in this Structure
Swale Borough Council,29UM,20/04/2016,1140622,499.00,HBINFO LTD,5779046                  ,REVENUE SERVICES,Fees And Services,Housing
Swale Borough Council,29UM,20/04/2016,1140860,414.00,HIGHER ELEVATION LTD,                         ,HOUSING SERVICES,Housing Renovation Grants,Not used in this Structure
Swale Borough Council,29UM,20/04/2016,1140853,1728.00,HUBBARD & HOUGHTON CONSTRUCTION LTD,                         ,HOUSING SERVICES,Housing Renovation Grants,Not used in this Structure
Swale Borough Council,29UM,20/04/2016,1140854,811.44,HUBBARD & HOUGHTON CONSTRUCTION LTD,                         ,HOUSING SERVICES,Housing Renovation Grants,Not used in this Structure
Swale Borough Council,29UM,20/04/2016,1140851,700.00,HUBBARD & HOUGHTON LTD,                         ,HOUSING SERVICES,Housing Renovation Grants,Not used in this Structure
Swale Borough Council,29UM,20/04/2016,1140744,4125.00,INTEGRA ASSOCIATES LIMITED,03054901                 ,FINANCIAL SERVICES,Capitalised Fees And Charges,Not used in this Structure
Swale Borough Council,29UM,20/04/2016,1140861,573.41,J & D SYSTEMS,                         ,HOUSING SERVICES,Housing Renovation Grants,Not used in this Structure
Swale Borough Council,29UM,20/04/2016,1140862,719.19,J & D SYSTEMS,                         ,HOUSING SERVICES,Housing Renovation Grants,Not used in this Structure
Swale Borough Council,29UM,20/04/2016,1140863,1896.00,J & D SYSTEMS,                         ,HOUSING SERVICES,Housing Renovation Grants,Not used in this Structure
Swale Borough Council,29UM,20/04/2016,1140756,350.00,J N CLEARANCE,                         ,LEISURE & OPEN SPACES,Maintenance - Grounds,Environmental and Regulatory Services
Swale Borough Council,29UM,20/04/2016,1140756,50.00,J N CLEARANCE,                         ,LEISURE & OPEN SPACES,Maintenance - Grounds,Environmental and Regulatory Services
Swale Borough Council,29UM,20/04/2016,1140847,3920.08,JCBS BUILDING SERVICES,                         ,HOUSING SERVICES,Housing Renovation Grants,Not used in this Structure
Swale Borough Council,29UM,20/04/2016,1140644,3862.55,KENT COUNTY COUNCIL (KCS),                         ,PROPERTY SERVICES,Gas,Corporate & Democratic Core
Swale Borough Council,29UM,20/04/2016,1140539,560.00,KENT INVICTA CHAMBER OF COMMERCE,2794615                  ,ECONOMIC DEVELOPMENT,Fees And Services,Planning and Development Services
Swale Borough Council,29UM,20/04/2016,1140540,490.00,KENT INVICTA CHAMBER OF COMMERCE,2794615                  ,ECONOMIC DEVELOPMENT,Fees And Services,Planning and Development Services
Swale Borough Council,29UM,20/04/2016,1140318,2635.00,KENT MESSENGER LTD,505554                   ,COMMUNICATIONS,Advertising & Promotion,Internal Trading Cost Centres
Swale Borough Council,29UM,20/04/2016,1140590,714.00,KENT MESSENGER LTD,505554                   ,CAR PARKS,Fees And Services,Highway and Transport Services
Swale Borough Council,29UM,20/04/2016,1140723,1145.00,KENT MESSENGER LTD,505554                   ,COMMUNICATIONS,Advertising & Promotion,Internal Trading Cost Centres
Swale Borough Council,29UM,20/04/2016,1140836,772.50,KOMPAN LTD,1704623                  ,LEISURE & OPEN SPACES,Equipment Purchase,Cultural and Related Services
Swale Borough Council,29UM,20/04/2016,1140745,764.91,LAMBERHURST ENGINEERING LTD,3595260                  ,LEISURE & OPEN SPACES,Equipment Purchase,Cultural and Related Services
Swale Borough Council,29UM,20/04/2016,1140447,1320.00,LESSHOMELESS LIMITED,08458851                 ,HOUSING SERVICES,B & B - Landlords Payments,Housing
Swale Borough Council,29UM,20/04/2016,1140448,495.00,LESSHOMELESS LIMITED,08458851                 ,HOUSING SERVICES,B & B - Landlords Payments,Housing
Swale Borough Council,29UM,20/04/2016,1140736,3440.00,LG FUTURES LTD,05308266                 ,FINANCIAL SERVICES,Fees And Services,Internal Trading Cost Centres
Swale Borough Council,29UM,20/04/2016,1140337,2562.00,LILAC ESTATES,                         ,HOUSING SERVICES,B & B - Landlords Payments,Housing
Swale Borough Council,29UM,20/04/2016,1140338,1549.00,LILAC ESTATES,                         ,HOUSING SERVICES,B & B - Landlords Payments,Housing
Swale Borough Council,29UM,20/04/2016,1140810,495.00,LOCAL GOVERNMENT ASSOCIATION,                         ,CHIEF EXECUTIVE,Conference,Internal Trading Cost Centres
Swale Borough Council,29UM,20/04/2016,1140047,3570.00,MAGEES GUESTHOUSE,                         ,HOUSING SERVICES,B & B - Landlords Payments,Housing
Swale Borough Council,29UM,20/04/2016,1140347,2795.00,MAGEES GUESTHOUSE,                         ,HOUSING SERVICES,B & B - Landlords Payments,Housing
Swale Borough Council,29UM,20/04/2016,1140465,2985.00,MAGEES GUESTHOUSE,                         ,HOUSING SERVICES,B & B - Landlords Payments,Housing
Swale Borough Council,29UM,20/04/2016,1140466,-280.00,MAGEES GUESTHOUSE,                         ,HOUSING SERVICES,B & B - Landlords Payments,Housing
Swale Borough Council,29UM,20/04/2016,1140634,3465.00,MAGEES GUESTHOUSE,                         ,HOUSING SERVICES,B & B - Landlords Payments,Housing
Swale Borough Council,29UM,20/04/2016,1140186,57933.34,MAIDSTONE BOROUGH COUNCIL,                         ,ICT,Computer Equipment & Materials,Internal Trading Cost Centres
Swale Borough Council,29UM,20/04/2016,1140462,100835.00,MAIDSTONE BOROUGH COUNCIL,                         ,ICT,MKIP Charges for ICT,Internal Trading Cost Centres
Swale Borough Council,29UM,20/04/2016,1140463,38495.00,MAIDSTONE BOROUGH COUNCIL,                         ,AUDIT,MKIP Charges for Audit Services,Internal Trading Cost Centres
Swale Borough Council,29UM,20/04/2016,1139563,330.17,MEDWAY ACCOMMODATION LIMITED,                         ,HOUSING SERVICES,B & B - Landlords Payments,Housing
Swale Borough Council,29UM,20/04/2016,1139563,1584.80,MEDWAY ACCOMMODATION LIMITED,                         ,HOUSING SERVICES,B & B - Landlords Payments,Housing
Swale Borough Council,29UM,20/04/2016,1139623,1730.40,MEDWAY ACCOMMODATION LIMITED,                         ,HOUSING SERVICES,B & B - Landlords Payments,Housing
Swale Borough Council,29UM,20/04/2016,1139623,360.50,MEDWAY ACCOMMODATION LIMITED,                         ,HOUSING SERVICES,B & B - Landlords Payments,Housing
Swale Borough Council,29UM,20/04/2016,1139794,1599.20,MEDWAY ACCOMMODATION LIMITED,                         ,HOUSING SERVICES,B & B - Landlords Payments,Housing
Swale Borough Council,29UM,20/04/2016,1139794,333.17,MEDWAY ACCOMMODATION LIMITED,                         ,HOUSING SERVICES,B & B - Landlords Payments,Housing
Swale Borough Council,29UM,20/04/2016,1139962,1548.80,MEDWAY ACCOMMODATION LIMITED,                         ,HOUSING SERVICES,B & B - Landlords Payments,Housing
Swale Borough Council,29UM,20/04/2016,1139962,322.67,MEDWAY ACCOMMODATION LIMITED,                         ,HOUSING SERVICES,B & B - Landlords Payments,Housing
Swale Borough Council,29UM,20/04/2016,1140180,1571.20,MEDWAY ACCOMMODATION LIMITED,                         ,HOUSING SERVICES,B & B - Landlords Payments,Housing
Swale Borough Council,29UM,20/04/2016,1140180,327.33,MEDWAY ACCOMMODATION LIMITED,                         ,HOUSING SERVICES,B & B - Landlords Payments,Housing
Swale Borough Council,29UM,20/04/2016,1140533,-221.67,MEDWAY ACCOMMODATION LIMITED,                         ,HOUSING SERVICES,B & B - Landlords Payments,Housing
Swale Borough Council,29UM,20/04/2016,1140533,-1064.00,MEDWAY ACCOMMODATION LIMITED,                         ,HOUSING SERVICES,B & B - Landlords Payments,Housing
Swale Borough Council,29UM,20/04/2016,1140638,822.46,REDACTED PERSONAL INFORMATION,                         ,HOUSING SERVICES,RDS - Landlord claim on Bond Scheme,Housing
Swale Borough Council,29UM,20/04/2016,1140588,550.00,REDACTED PERSONAL INFORMATION,                         ,ENVIRONMENTAL RESPONSE TEAM,Legal Fees,Internal Trading Cost Centres
Swale Borough Council,29UM,20/04/2016,1140588,110.00,REDACTED PERSONAL INFORMATION,                         ,ENVIRONMENTAL RESPONSE TEAM,Legal Fees,Internal Trading Cost Centres
Swale Borough Council,29UM,20/04/2016,1140727,250.00,MR J W GATES,                         ,SERVICE DELIVERY,Maintenance - Grounds,Cultural and Related Services
Swale Borough Council,29UM,20/04/2016,1140727,16.00,MR J W GATES,                         ,SERVICE DELIVERY,Maintenance - Grounds,Cultural and Related Services
Swale Borough Council,29UM,20/04/2016,1140635,994.00,REDACTED PERSONAL INFORMATION,                         ,HOUSING SERVICES,RDS - Landlord claim on Bond Scheme,Housing
Swale Borough Council,29UM,20/04/2016,1140636,900.00,REDACTED PERSONAL INFORMATION,                         ,HOUSING SERVICES,RDS - Landlord claim on Bond Scheme,Housing
Swale Borough Council,29UM,20/04/2016,1140306,350.00,OBSIDIAN SECURITY LTD.,                         ,PROPERTY SERVICES,Service Contracts,Corporate & Democratic Core
Swale Borough Council,29UM,20/04/2016,1140307,130.00,OBSIDIAN SECURITY LTD.,                         ,COMMUNITY SAFETY,Service Contracts,Cultural and Related Services
Swale Borough Council,29UM,20/04/2016,1140307,130.00,OBSIDIAN SECURITY LTD.,                         ,SERVICE DELIVERY,Service Contracts,Cultural and Related Services
Swale Borough Council,29UM,20/04/2016,1140307,334.30,OBSIDIAN SECURITY LTD.,                         ,PROPERTY SERVICES,Service Contracts,Corporate & Democratic Core
Swale Borough Council,29UM,20/04/2016,1140307,130.00,OBSIDIAN SECURITY LTD.,                         ,LEISURE & OPEN SPACES,Service Contracts,Cultural and Related Services
Swale Borough Council,29UM,20/04/2016,1140308,525.00,OBSIDIAN SECURITY LTD.,                         ,PROPERTY SERVICES,Service Contracts,Corporate & Democratic Core
Swale Borough Council,29UM,20/04/2016,1140713,265.63,OBSIDIAN SECURITY LTD.,                         ,PROPERTY SERVICES,Service Contracts,Corporate & Democratic Core
Swale Borough Council,29UM,20/04/2016,1140535,1998.00,PINSENT MASONS LLP,OC333653                 ,ECONOMIC DEVELOPMENT,Consultancy/Specialist Advice,Planning and Development Services
Swale Borough Council,29UM,20/04/2016,1140748,440.00,PMC POLYTHENE LTD,                         ,SERVICE DELIVERY,Maintenance - Grounds,Cultural and Related Services
Swale Borough Council,29UM,20/04/2016,1140846,692.85,PRECEPT CS LIMITED,07311462                 ,HOUSING SERVICES,Housing Renovation Grants,Not used in this Structure
Swale Borough Council,29UM,20/04/2016,1140852,3744.41,PRECEPT CS LIMITED,07311462                 ,HOUSING SERVICES,Housing Renovation Grants,Not used in this Structure
Swale Borough Council,29UM,20/04/2016,1140289,829.00,PREMIER TECHNICAL SERVICES GROUP,03233894                 ,PROPERTY SERVICES,Service Contracts,Corporate & Democratic Core
Swale Borough Council,29UM,20/04/2016,1140581,490.00,REARDON PROPERTIES,                         ,HOUSING SERVICES,B & B - Landlords Payments,Housing
Swale Borough Council,29UM,20/04/2016,1140582,490.00,REARDON PROPERTIES,                         ,HOUSING SERVICES,B & B - Landlords Payments,Housing
Swale Borough Council,29UM,20/04/2016,1140583,755.00,REARDON PROPERTIES,                         ,HOUSING SERVICES,B & B - Landlords Payments,Housing
Swale Borough Council,29UM,20/04/2016,1140584,875.00,REARDON PROPERTIES,                         ,HOUSING SERVICES,B & B - Landlords Payments,Housing
Swale Borough Council,29UM,20/04/2016,1140585,428.59,REARDON PROPERTIES,                         ,HOUSING SERVICES,B & B - Landlords Payments,Housing
Swale Borough Council,29UM,20/04/2016,1140757,755.00,REARDON PROPERTIES,                         ,HOUSING SERVICES,B & B - Landlords Payments,Housing
Swale Borough Council,29UM,20/04/2016,1140758,490.00,REARDON PROPERTIES,                         ,HOUSING SERVICES,B & B - Landlords Payments,Housing
Swale Borough Council,29UM,20/04/2016,1139842,1490.80,SANDERSON LIMITED,                         ,ICT,Computer Equipment & Materials,Internal Trading Cost Centres
Swale Borough Council,29UM,20/04/2016,1140503,9036.92,SERCO LEISURE OPERATING LIMITED,04687478                 ,LEISURE & OPEN SPACES,Procurement Contracts Only,Cultural and Related Services
Swale Borough Council,29UM,20/04/2016,1140459,608.00,SHEPPEY MATTERS,3946296                  ,ECONOMIC DEVELOPMENT,Fees And Services,Planning and Development Services
Swale Borough Council,29UM,20/04/2016,1140741,398.00,SOLACE,04053417                 ,CHIEF EXECUTIVE,Grants & Subscriptions,Internal Trading Cost Centres
Swale Borough Council,29UM,20/04/2016,1140724,482.79,SOUTHERN ELECTRIC,                         ,LEISURE & OPEN SPACES,Electricity,Cultural and Related Services
Swale Borough Council,29UM,20/04/2016,1140599,360.55,SOUTHERN WATER SERVICES LIMITED,2366670                  ,CAR PARKS,Water - Rateable Value,Highway and Transport Services
Swale Borough Council,29UM,20/04/2016,1140601,560.35,SOUTHERN WATER SERVICES LIMITED,2366670                  ,CAR PARKS,Water - Rateable Value,Highway and Transport Services
Swale Borough Council,29UM,20/04/2016,1140602,327.25,SOUTHERN WATER SERVICES LIMITED,2366670                  ,CAR PARKS,Water - Rateable Value,Highway and Transport Services
Swale Borough Council,29UM,20/04/2016,1140603,726.85,SOUTHERN WATER SERVICES LIMITED,2366670                  ,CAR PARKS,Water - Rateable Value,Highway and Transport Services
Swale Borough Council,29UM,20/04/2016,1140604,460.45,SOUTHERN WATER SERVICES LIMITED,2366670                  ,CAR PARKS,Water - Rateable Value,Highway and Transport Services
Swale Borough Council,29UM,20/04/2016,1140605,227.35,SOUTHERN WATER SERVICES LIMITED,2366670                  ,CAR PARKS,Water - Rateable Value,Highway and Transport Services
Swale Borough Council,29UM,20/04/2016,1140605,111.58,SOUTHERN WATER SERVICES LIMITED,2366670                  ,CAR PARKS,Water - Rateable Value,Highway and Transport Services
Swale Borough Council,29UM,20/04/2016,1140606,513.73,SOUTHERN WATER SERVICES LIMITED,2366670                  ,CAR PARKS,Water - Rateable Value,Highway and Transport Services
Swale Borough Council,29UM,20/04/2016,1140607,380.53,SOUTHERN WATER SERVICES LIMITED,2366670                  ,CAR PARKS,Water - Rateable Value,Highway and Transport Services
Swale Borough Council,29UM,20/04/2016,1140608,427.15,SOUTHERN WATER SERVICES LIMITED,2366670                  ,CAR PARKS,Water - Rateable Value,Highway and Transport Services
Swale Borough Council,29UM,20/04/2016,1140609,260.65,SOUTHERN WATER SERVICES LIMITED,2366670                  ,CAR PARKS,Water - Rateable Value,Highway and Transport Services
Swale Borough Council,29UM,20/04/2016,1140610,327.25,SOUTHERN WATER SERVICES LIMITED,2366670                  ,CAR PARKS,Water - Rateable Value,Highway and Transport Services
Swale Borough Council,29UM,20/04/2016,1140617,340.57,SOUTHERN WATER SERVICES LIMITED,2366670                  ,CAR PARKS,Water - Rateable Value,Highway and Transport Services
Swale Borough Council,29UM,20/04/2016,1140618,706.87,SOUTHERN WATER SERVICES LIMITED,2366670                  ,CAR PARKS,Water - Rateable Value,Highway and Transport Services
Swale Borough Council,29UM,20/04/2016,1140461,260.00,SPECTRUM COMPUTER SUPPLIES LTD,                         ,DIRECTOR OF CORPORATE SERVICES,Computer Equipment & Materials,Environmental and Regulatory Services
Swale Borough Council,29UM,20/04/2016,1140471,11829.38,SWALE COMMUNITY LEISURE LIMITED,31132R                   ,LEISURE & OPEN SPACES,Procurement Contracts Only,Cultural and Related Services
Swale Borough Council,29UM,20/04/2016,1140255,14910.00,T4 MEDIA GROUP,                         ,CONTRACT & PROCUREMENT,Waste and Recycling Promotion / Comm's Projects,Environmental and Regulatory Services
Swale Borough Council,29UM,20/04/2016,1140814,240.00,TEDDSONS & SONS LTD,08945129                 ,LEISURE & OPEN SPACES,Maintenance - Grounds,Cultural and Related Services
Swale Borough Council,29UM,20/04/2016,1140814,162.50,TEDDSONS & SONS LTD,08945129                 ,LEISURE & OPEN SPACES,Maintenance - Grounds,Cultural and Related Services
Swale Borough Council,29UM,20/04/2016,1140645,1044.00,THOMSON REUTERS,1679046                  ,MKIP LEGAL SERVICES,"Books, Journals & e - resources",Internal Trading Cost Centres
Swale Borough Council,29UM,20/04/2016,1140436,1365.00,TRAFALGAR TAVERN LTD,07999329                 ,HOUSING SERVICES,B & B - Landlords Payments,Housing
Swale Borough Council,29UM,20/04/2016,1140627,1715.00,TRAFALGAR TAVERN LTD,07999329                 ,HOUSING SERVICES,B & B - Landlords Payments,Housing
Swale Borough Council,29UM,20/04/2016,1140819,1715.00,TRAFALGAR TAVERN LTD,07999329                 ,HOUSING SERVICES,B & B - Landlords Payments,Housing
Swale Borough Council,29UM,20/04/2016,1140716,1436.80,VENN GROUP LIMITED,                         ,MKIP LEGAL SERVICES,Agency/Contract Staff,Internal Trading Cost Centres
Swale Borough Council,29UM,20/04/2016,1140717,1230.00,VENN GROUP LIMITED,                         ,MKIP LEGAL SERVICES,Agency/Contract Staff,Internal Trading Cost Centres
Swale Borough Council,29UM,20/04/2016,1140718,922.50,VENN GROUP LIMITED,                         ,MKIP LEGAL SERVICES,Agency/Contract Staff,Internal Trading Cost Centres
Swale Borough Council,29UM,20/04/2016,1140719,922.50,VENN GROUP LIMITED,                         ,MKIP LEGAL SERVICES,Agency/Contract Staff,Internal Trading Cost Centres
Swale Borough Council,29UM,20/04/2016,1140720,600.00,VENN GROUP LIMITED,                         ,MKIP LEGAL SERVICES,Agency/Contract Staff,Internal Trading Cost Centres
Swale Borough Council,29UM,20/04/2016,1140721,600.00,VENN GROUP LIMITED,                         ,MKIP LEGAL SERVICES,Agency/Contract Staff,Internal Trading Cost Centres
Swale Borough Council,29UM,20/04/2016,1140743,920.00,VENN GROUP LIMITED,                         ,MKIP LEGAL SERVICES,Agency/Contract Staff,Internal Trading Cost Centres
Swale Borough Council,29UM,20/04/2016,1140558,146.88,WHISTL UK LIMITED,04417047                 ,REVENUE SERVICES,Postage,Central Services to the Public
Swale Borough Council,29UM,20/04/2016,1140558,73.44,WHISTL UK LIMITED,04417047                 ,REVENUE SERVICES,Postage,Housing
Swale Borough Council,29UM,20/04/2016,1140558,40.51,WHISTL UK LIMITED,04417047                 ,PROPERTY SERVICES,Postage,Holding Codes
Swale Borough Council,29UM,20/04/2016,1140640,612.27,WHISTL UK LIMITED,04417047                 ,REVENUE SERVICES,Postage,Central Services to the Public
Swale Borough Council,29UM,20/04/2016,1140640,306.13,WHISTL UK LIMITED,04417047                 ,REVENUE SERVICES,Postage,Housing
Swale Borough Council,29UM,20/04/2016,1140640,971.29,WHISTL UK LIMITED,04417047                 ,PROPERTY SERVICES,Postage,Holding Codes
Swale Borough Council,29UM,20/04/2016,1140848,4511.00,WILLOW TREE HOME SOLUTIONS LTD,                         ,HOUSING SERVICES,Housing Renovation Grants,Not used in this Structure
Swale Borough Council,29UM,20/04/2016,1140849,5253.30,WILLOW TREE HOME SOLUTIONS LTD,                         ,HOUSING SERVICES,Housing Renovation Grants,Not used in this Structure
Swale Borough Council,29UM,20/04/2016,1140850,4155.30,WILLOW TREE HOME SOLUTIONS LTD,                         ,HOUSING SERVICES,Housing Renovation Grants,Not used in this Structure
Swale Borough Council,29UM,25/04/2016,1140962,450.67,MEDWAY ACCOMMODATION LIMITED,                         ,,Workflow Routing,
Swale Borough Council,29UM,25/04/2016,1140962,2163.20,MEDWAY ACCOMMODATION LIMITED,                         ,,Workflow Routing,
Swale Borough Council,29UM,25/04/2016,4500513,-450.67,MEDWAY ACCOMMODATION LIMITED,                         ,,Workflow Routing,
Swale Borough Council,29UM,25/04/2016,4500513,-2163.20,MEDWAY ACCOMMODATION LIMITED,                         ,,Workflow Routing,
Swale Borough Council,29UM,27/04/2016,1140873,391.00,ACORN MAINTENANCE SERVICES,3546898                  ,HOUSING SERVICES,Staying Put small repairs (contractors),Housing
Swale Borough Council,29UM,27/04/2016,1140911,34.60,ALLSTAR BUSINESS SOLUTIONS LTD - (DT),1073098                  ,SERVICE DELIVERY,Petrol/Derv & Oil,Cultural and Related Services
Swale Borough Council,29UM,27/04/2016,1140911,189.37,ALLSTAR BUSINESS SOLUTIONS LTD - (DT),1073098                  ,ENVIRONMENTAL RESPONSE TEAM,Fuel For Contract Vehicles,Internal Trading Cost Centres
Swale Borough Council,29UM,27/04/2016,1140911,41.85,ALLSTAR BUSINESS SOLUTIONS LTD - (DT),1073098                  ,ENVIRONMENTAL RESPONSE TEAM,Fuel For Contract Vehicles,Environmental and Regulatory Services
Swale Borough Council,29UM,27/04/2016,1141006,1480.50,ASCENDIT LIFTS LTD,3493530                  ,HOUSING SERVICES,Housing Renovation Grants,Not used in this Structure
Swale Borough Council,29UM,27/04/2016,1140702,330.00,BLENWOOD LTD,4383277                  ,LEISURE & OPEN SPACES,Maintenance - Grounds Contract,Cultural and Related Services
Swale Borough Council,29UM,27/04/2016,1140807,393.15,BLENWOOD LTD,4383277                  ,LEISURE & OPEN SPACES,Maintenance - Grounds Contract,Cultural and Related Services
Swale Borough Council,29UM,27/04/2016,1140829,33357.50,CITIZENS ADVICE BUREAU IN SWALE,5052691                  ,COMMUNITY SAFETY,Voluntary Organisations Grants,Central Services to the Public
Swale Borough Council,29UM,27/04/2016,1140809,2388.00,CITY OF LONDON,                         ,MKIP ENVIRONMENTAL SERVICES,Sampling / Monitoring,Environmental and Regulatory Services
Swale Borough Council,29UM,27/04/2016,1141029,2076.40,CO-OP BANK PLC - (DT),                         ,REVENUE SERVICES,Bank Charges Pay Point,Central Services to the Public
Swale Borough Council,29UM,27/04/2016,1141029,22.25,CO-OP BANK PLC - (DT),                         ,REVENUE SERVICES,Bank Charges Pay Point,Central Services to the Public
Swale Borough Council,29UM,27/04/2016,1141029,64.08,CO-OP BANK PLC - (DT),                         ,REVENUE SERVICES,Bank Charges Pay Point,Housing
Swale Borough Council,29UM,27/04/2016,1141029,10.23,CO-OP BANK PLC - (DT),                         ,EXCHEQUER,Bank Charges Pay Point,Internal Trading Cost Centres
Swale Borough Council,29UM,27/04/2016,1141029,58.74,CO-OP BANK PLC - (DT),                         ,EXCHEQUER,Bank Charges Pay Point,Internal Trading Cost Centres
Swale Borough Council,29UM,27/04/2016,1140797,8200.90,GLASDON U.K.LIMITED,2160576                  ,CONTRACT & PROCUREMENT,Equipment Purchase,Environmental and Regulatory Services
Swale Borough Council,29UM,27/04/2016,1141002,9413.63,GREENS GROUNDWORK,                         ,HOUSING SERVICES,Housing Renovation Grants,Not used in this Structure
Swale Borough Council,29UM,27/04/2016,1141003,7930.74,HUBBARD & HOUGHTON CONSTRUCTION LTD,                         ,HOUSING SERVICES,Housing Renovation Grants,Not used in this Structure
Swale Borough Council,29UM,27/04/2016,1141004,5400.00,HUBBARD & HOUGHTON CONSTRUCTION LTD,                         ,HOUSING SERVICES,Housing Renovation Grants,Not used in this Structure
Swale Borough Council,29UM,27/04/2016,1141005,4500.00,HUBBARD & HOUGHTON CONSTRUCTION LTD,                         ,HOUSING SERVICES,Housing Renovation Grants,Not used in this Structure
Swale Borough Council,29UM,27/04/2016,1140899,250.00,LEMAR LIMITED,04350292                 ,SERVICE DELIVERY,Private Contractors - CIS,Highway and Transport Services
Swale Borough Council,29UM,27/04/2016,1140899,40.00,LEMAR LIMITED,04350292                 ,SERVICE DELIVERY,Private Contractors - CIS,Highway and Transport Services
Swale Borough Council,29UM,27/04/2016,1140901,500.00,LEMAR LIMITED,04350292                 ,SERVICE DELIVERY,Maintenance - Grounds,Cultural and Related Services
Swale Borough Council,29UM,27/04/2016,1140901,424.00,LEMAR LIMITED,04350292                 ,SERVICE DELIVERY,Maintenance - Grounds,Cultural and Related Services
Swale Borough Council,29UM,27/04/2016,1140902,300.00,LEMAR LIMITED,04350292                 ,CAR PARKS,Maintenance - Grounds,Highway and Transport Services
Swale Borough Council,29UM,27/04/2016,1140902,395.00,LEMAR LIMITED,04350292                 ,CAR PARKS,Maintenance - Grounds,Highway and Transport Services
Swale Borough Council,29UM,27/04/2016,1140816,1776.00,MACDONALD & COMPANY FREELANCE LTD,3882135                  ,PLANNING SERVICES,Agency/Contract Staff,Internal Trading Cost Centres
Swale Borough Council,29UM,27/04/2016,1140737,71335.88,MAIDSTONE BOROUGH COUNCIL,                         ,CONTRACT & PROCUREMENT,Private Contractors,Environmental and Regulatory Services
Swale Borough Council,29UM,27/04/2016,1140737,190310.02,MAIDSTONE BOROUGH COUNCIL,                         ,CONTRACT & PROCUREMENT,Private Contractors,Environmental and Regulatory Services
Swale Borough Council,29UM,27/04/2016,1140897,68808.51,MAIDSTONE BOROUGH COUNCIL,                         ,CONTRACT & PROCUREMENT,Private Contractors,Environmental and Regulatory Services
Swale Borough Council,29UM,27/04/2016,1140897,8686.59,MAIDSTONE BOROUGH COUNCIL,                         ,CONTRACT & PROCUREMENT,Equipment Purchase,Environmental and Regulatory Services
Swale Borough Council,29UM,27/04/2016,1140740,1642.96,MATCHTECH,4426336                  ,PLANNING SERVICES,Agency/Contract Staff,Internal Trading Cost Centres
Swale Borough Council,29UM,27/04/2016,1140749,8500.00,REDACTED PERSONAL INFORMATION,                         ,PLANNING SERVICES,Legal Fees,Internal Trading Cost Centres
Swale Borough Council,29UM,27/04/2016,1140749,1700.00,REDACTED PERSONAL INFORMATION,                         ,PLANNING SERVICES,Legal Fees,Internal Trading Cost Centres
Swale Borough Council,29UM,27/04/2016,1140992,269.88,MR J W GATES,                         ,LEISURE & OPEN SPACES,Nursery Stock,Cultural and Related Services
Swale Borough Council,29UM,27/04/2016,1140992,300.12,MR J W GATES,                         ,LEISURE & OPEN SPACES,Nursery Stock,Cultural and Related Services
Swale Borough Council,29UM,27/04/2016,1140799,23641.00,MUNICIPAL MUTUAL INSURANCE LTD,                         ,FINANCIAL SERVICES,Payments in Year,Ledger/Suspense Codes
Swale Borough Council,29UM,27/04/2016,1140893,250.00,PRO-ACTIONS BUSINESS IMPROVEMENT LTD,07742444                 ,ECONOMIC DEVELOPMENT,Fees And Services,Planning and Development Services
Swale Borough Council,29UM,27/04/2016,1141022,2968.00,SERCO PAISA LTD - (DT),04908482                 ,LEISURE & OPEN SPACES,Contracts,Cultural and Related Services
Swale Borough Council,29UM,27/04/2016,1140049,1080.00,SHELTER,263210                   ,HOUSING SERVICES,Fees And Services,Housing
Swale Borough Council,29UM,27/04/2016,1140921,2100.00,SHEPPY GLASS CENTRE LTD,                         ,PROPERTY SERVICES,Non-Planned Building Maintenance,Corporate & Democratic Core
Swale Borough Council,29UM,27/04/2016,1140957,9000.00,SMC FORD,                         ,FINANCIAL SERVICES,Payments in Year,Ledger/Suspense Codes
Swale Borough Council,29UM,27/04/2016,1141007,4320.00,SOUTH EAST BUILDING CO LTD,1786838                  ,HOUSING SERVICES,Housing Renovation Grants,Not used in this Structure
Swale Borough Council,29UM,27/04/2016,1140896,3080.46,SOUTHERN COMMUNICATIONS LTD,1328040                  ,ICT,Telephone,Corporate & Democratic Core
Swale Borough Council,29UM,27/04/2016,1140955,861.80,ST JOHN THE BAPTISTS PARISH CHURCH BREDGAR,                         ,TOURISM & SPORTS DEVELOPMENT,Grants & Subscriptions,Cultural and Related Services
Swale Borough Council,29UM,27/04/2016,1140926,575.00,TEYNHAM LANDSCAPING LTD,                         ,CAR PARKS,Grounds Contract Variations,Highway and Transport Services
Swale Borough Council,29UM,27/04/2016,1140928,1160.00,TEYNHAM LANDSCAPING LTD,                         ,LEISURE & OPEN SPACES,Concessionary Use,Cultural and Related Services
Swale Borough Council,29UM,27/04/2016,1140837,1000.00,THE HISTORICAL RESEARCH GROUP OF SITTINGBOURNE,                         ,TOURISM & SPORTS DEVELOPMENT,Grants & Subscriptions,Cultural and Related Services
Swale Borough Council,29UM,27/04/2016,1140953,600.78,TRIBUNE GRAPHICS LTD,                         ,SERVICE DELIVERY,Maintenance - Grounds,Cultural and Related Services
Swale Borough Council,29UM,27/04/2016,1140956,631.59,TRIBUNE GRAPHICS LTD,                         ,SERVICE DELIVERY,Maintenance - Grounds,Cultural and Related Services
Swale Borough Council,29UM,27/04/2016,1140930,1004.50,VENN GROUP LIMITED,                         ,MKIP LEGAL SERVICES,Agency/Contract Staff,Internal Trading Cost Centres
Swale Borough Council,29UM,27/04/2016,1140931,1230.00,VENN GROUP LIMITED,                         ,MKIP LEGAL SERVICES,Agency/Contract Staff,Internal Trading Cost Centres
Swale Borough Council,29UM,27/04/2016,1140932,1230.00,VENN GROUP LIMITED,                         ,MKIP LEGAL SERVICES,Agency/Contract Staff,Internal Trading Cost Centres
Swale Borough Council,29UM,27/04/2016,1140933,1373.60,VENN GROUP LIMITED,                         ,MKIP LEGAL SERVICES,Agency/Contract Staff,Internal Trading Cost Centres
Swale Borough Council,29UM,27/04/2016,1140934,920.00,VENN GROUP LIMITED,                         ,MKIP LEGAL SERVICES,Agency/Contract Staff,Internal Trading Cost Centres
Swale Borough Council,29UM,27/04/2016,1140949,500.00,WEALD WOODSCAPES LTD,8028446                  ,LEISURE & OPEN SPACES,Maintenance - Grounds,Cultural and Related Services
Swale Borough Council,29UM,27/04/2016,1140833,1199.38,WHISTL UK LIMITED,04417047                 ,REVENUE SERVICES,Postage,Central Services to the Public
Swale Borough Council,29UM,27/04/2016,1140833,599.69,WHISTL UK LIMITED,04417047                 ,REVENUE SERVICES,Postage,Housing
Swale Borough Council,29UM,27/04/2016,1140833,2799.68,WHISTL UK LIMITED,04417047                 ,PROPERTY SERVICES,Postage,Holding Codes
Swale Borough Council,29UM,27/04/2016,1141028,3858.49,WORLDPAY (DT),07316500                 ,REVENUE SERVICES,Commission Paid,Central Services to the Public
Swale Borough Council,29UM,27/04/2016,1141028,64.21,WORLDPAY (DT),07316500                 ,REVENUE SERVICES,Commission Paid,Central Services to the Public
Swale Borough Council,29UM,27/04/2016,1141028,24.51,WORLDPAY (DT),07316500                 ,REVENUE SERVICES,Commission Paid,Housing
Swale Borough Council,29UM,27/04/2016,1141028,18.84,WORLDPAY (DT),07316500                 ,EXCHEQUER,Commission Paid,Internal Trading Cost Centres
Swale Borough Council,29UM,27/04/2016,1141028,840.06,WORLDPAY (DT),07316500                 ,EXCHEQUER,Commission Paid,Internal Trading Cost Centres
Swale Borough Council,29UM,27/04/2016,1141028,313.46,WORLDPAY (DT),07316500                 ,EXCHEQUER,Commission Paid,Internal Trading Cost Centres
Swale Borough Council,29UM,27/04/2016,1141028,9.99,WORLDPAY (DT),07316500                 ,ICT,Fees And Services,Internal Trading Cost Centres
